[Event "Early-Titled-Tuesday-Blitz-January-23-2024"]
[Site "Chess.com"]
[Date "2024.01.23"]
[Round "7"]
[White "FairChess_on_YouTube"]
[Black "Vazabanga"]
[Result "1-0"]
[WhiteElo "3092"]
[BlackElo "2677"]
[TimeControl "180+1"]
[EndTime "9:18:22 PST"]
[Termination "FairChess_on_YouTube won by resignation"]

1. e4 {[%clk 0:03:00.9]} 1... c5 {[%clk 0:02:58.9]} 2. Na3 {[%clk 0:02:59.9]}
2... Nc6 {[%clk 0:02:52.4]} 3. Bb5 {[%clk 0:02:59.6]} 3... g6 {[%clk 0:02:48]}
4. Nf3 {[%clk 0:02:58.3]} 4... Bg7 {[%clk 0:02:47.8]} 5. O-O {[%clk 0:02:58.4]}
5... Nf6 {[%clk 0:02:45.9]} 6. Re1 {[%clk 0:02:57.9]} 6... O-O {[%clk
0:02:45.3]} 7. d3 {[%clk 0:02:55.4]} 7... d6 {[%clk 0:02:44.7]} 8. h3 {[%clk
0:02:55]} 8... Nd7 {[%clk 0:02:34.9]} 9. c3 {[%clk 0:02:53.1]} 9... a6 {[%clk
0:02:31]} 10. Bxc6 {[%clk 0:02:51]} 10... bxc6 {[%clk 0:02:31.9]} 11. Be3 {[%clk
0:02:48.7]} 11... Ne5 {[%clk 0:02:17.4]} 12. Nxe5 {[%clk 0:02:33.8]} 12... Bxe5
{[%clk 0:02:18.3]} 13. Qd2 {[%clk 0:02:28.2]} 13... Bd7 {[%clk 0:02:11.4]} 14.
Nc4 {[%clk 0:02:22.1]} 14... Bg7 {[%clk 0:02:11.3]} 15. Bh6 {[%clk 0:02:22.2]}
15... Be6 {[%clk 0:01:58.7]} 16. Bxg7 {[%clk 0:02:21.7]} 16... Kxg7 {[%clk
0:01:59.6]} 17. Ne3 {[%clk 0:02:20.9]} 17... Rb8 {[%clk 0:01:57.8]} 18. d4
{[%clk 0:02:16.1]} 18... Qb6 {[%clk 0:01:52.7]} 19. d5 {[%clk 0:02:08]} 19...
Bd7 {[%clk 0:01:40.3]} 20. b3 {[%clk 0:02:07.7]} 20... Qc7 {[%clk 0:01:28.9]}
21. Rad1 {[%clk 0:02:07.2]} 21... Rfd8 {[%clk 0:01:28.4]} 22. c4 {[%clk
0:02:03.8]} 22... a5 {[%clk 0:01:19.4]} 23. dxc6 {[%clk 0:02:03.9]} 23... Bxc6
{[%clk 0:01:19.4]} 24. Nd5 {[%clk 0:01:55.2]} 24... Bxd5 {[%clk 0:01:11.3]} 25.
exd5 {[%clk 0:01:56.1]} 25... a4 {[%clk 0:01:11.6]} 26. Re3 {[%clk 0:01:56.3]}
26... axb3 {[%clk 0:01:08.9]} 27. axb3 {[%clk 0:01:56.3]} 27... Re8 {[%clk
0:01:04.7]} 28. h4 {[%clk 0:01:52]} 28... Qd7 {[%clk 0:01:02.2]} 29. h5 {[%clk
0:01:49.5]} 29... Qf5 {[%clk 0:00:52]} 30. h6+ {[%clk 0:01:47.7]} 30... Kg8
{[%clk 0:00:51.8]} 31. Rf3 {[%clk 0:01:38]} 31... Qh5 {[%clk 0:00:46.3]} 32. Re1
{[%clk 0:01:36.5]} 32... Rb7 {[%clk 0:00:44.1]} 33. Qf4 {[%clk 0:01:29.9]} 33...
Rf8 {[%clk 0:00:26.8]} 34. Qe3 {[%clk 0:01:13]} 34... Qg4 {[%clk 0:00:14.4]} 35.
g3 {[%clk 0:00:42.5]} 35... Qd7 {[%clk 0:00:13.9]} 36. Qc3 {[%clk 0:00:32.7]}
36... f6 {[%clk 0:00:13.1]} 37. Re6 {[%clk 0:00:33.3]} 37... Rf7 {[%clk
0:00:13.1]} 38. Kg2 {[%clk 0:00:32.6]} 38... Qc8 {[%clk 0:00:13.3]} 39. Qe3
{[%clk 0:00:31]} 39... Qf8 {[%clk 0:00:13.4]} 40. Qe1 {[%clk 0:00:29.7]} 40...
Qb8 {[%clk 0:00:13]} 41. Rfe3 {[%clk 0:00:26.6]} 41... Qf8 {[%clk 0:00:11.4]}
42. Qh1 {[%clk 0:00:26.6]} 42... Qb8 {[%clk 0:00:10.8]} 43. Qh3 {[%clk
0:00:23.9]} 43... Qf8 {[%clk 0:00:09.5]} 44. R6e4 {[%clk 0:00:23.7]} 44... f5
{[%clk 0:00:09.6]} 45. Re6 {[%clk 0:00:23.9]} 45... Qb8 {[%clk 0:00:09.1]} 46.
Qh4 {[%clk 0:00:23.2]} 46... Qf8 {[%clk 0:00:09.8]} 47. Qg5 {[%clk 0:00:23.5]}
47... Qd8 {[%clk 0:00:08.7]} 48. Rxg6+ {[%clk 0:00:19.4]} 48... hxg6 {[%clk
0:00:04.7]} 49. Qxg6+ {[%clk 0:00:20.3]} 49... Kf8 {[%clk 0:00:04.8]} 50. h7
{[%clk 0:00:20.6]} 50... Rxh7 {[%clk 0:00:05.2]} 51. Qxh7 {[%clk 0:00:21.4]}
51... Qd7 {[%clk 0:00:03.7]} 52. Re6 {[%clk 0:00:16.4]} 52... Rxb3 {[%clk
0:00:02.7]} 53. Rg6 {[%clk 0:00:14.3]} 1-0

[Event "Early-Titled-Tuesday-Blitz-January-23-2024"]
[Site "Chess.com"]
[Date "2024.01.23"]
[Round "7"]
[White "FM_VS99"]
[Black "grzechu96"]
[Result "1-0"]
[WhiteElo "2546"]
[BlackElo "2683"]
[TimeControl "180+1"]
[EndTime "9:18:24 PST"]
[Termination "FM_VS99 won by resignation"]

1. d4 {[%clk 0:03:00.9]} 1... d5 {[%clk 0:02:55.8]} 2. Nf3 {[%clk 0:03:00.9]}
2... Nf6 {[%clk 0:02:55.3]} 3. c4 {[%clk 0:03:00.3]} 3... c6 {[%clk 0:02:55.3]}
4. cxd5 {[%clk 0:03:00.4]} 4... cxd5 {[%clk 0:02:56.2]} 5. Nc3 {[%clk
0:03:00.8]} 5... Nc6 {[%clk 0:02:55.9]} 6. Bf4 {[%clk 0:03:01.1]} 6... a6 {[%clk
0:02:52]} 7. Rc1 {[%clk 0:03:00.9]} 7... Bf5 {[%clk 0:02:43.2]} 8. e3 {[%clk
0:02:59.8]} 8... e6 {[%clk 0:02:40.9]} 9. Qb3 {[%clk 0:02:36.4]} 9... Bb4 {[%clk
0:02:39.2]} 10. a3 {[%clk 0:02:33.4]} 10... Bxc3+ {[%clk 0:02:37.6]} 11. Rxc3
{[%clk 0:02:32.1]} 11... O-O {[%clk 0:01:52.2]} 12. Qxb7 {[%clk 0:01:45.6]}
12... Na5 {[%clk 0:01:30.8]} 13. Qb4 {[%clk 0:01:44.9]} 13... Ne4 {[%clk
0:01:17.9]} 14. Bc7 {[%clk 0:01:28]} 14... Qd7 {[%clk 0:01:14]} 15. Ne5 {[%clk
0:01:16.7]} 15... Qe8 {[%clk 0:01:03.2]} 16. Bxa5 {[%clk 0:00:39.4]} 16... Nxc3
{[%clk 0:00:46]} 17. Qxc3 {[%clk 0:00:32.9]} 17... Rc8 {[%clk 0:00:44.4]} 18.
Qd2 {[%clk 0:00:29.6]} 18... Rc2 {[%clk 0:00:39.7]} 19. Qd1 {[%clk 0:00:15.6]}
19... Rxb2 {[%clk 0:00:39.5]} 20. Bd3 {[%clk 0:00:14.4]} 20... Bxd3 {[%clk
0:00:33.4]} 21. Nxd3 {[%clk 0:00:12.6]} 21... Ra2 {[%clk 0:00:16.8]} 22. Bb4
{[%clk 0:00:12.8]} 22... Qb5 {[%clk 0:00:16.7]} 23. Bxf8 {[%clk 0:00:13.1]}
23... Kxf8 {[%clk 0:00:17.6]} 24. O-O {[%clk 0:00:12.5]} 24... Rxa3 {[%clk
0:00:18]} 25. Nc5 {[%clk 0:00:12.1]} 25... g6 {[%clk 0:00:14.2]} 26. Qb1 {[%clk
0:00:12.3]} 26... Qxb1 {[%clk 0:00:09.9]} 27. Rxb1 {[%clk 0:00:13.2]} 27... a5
{[%clk 0:00:10]} 28. g4 {[%clk 0:00:12.7]} 28... Kg7 {[%clk 0:00:09.9]} 29. g5
{[%clk 0:00:12.4]} 29... h6 {[%clk 0:00:10.1]} 30. h4 {[%clk 0:00:12.7]} 30...
hxg5 {[%clk 0:00:10.3]} 31. hxg5 {[%clk 0:00:13.6]} 31... Rc3 {[%clk 0:00:08.8]}
32. Rb7 {[%clk 0:00:13.3]} 32... Kf8 {[%clk 0:00:08.6]} 33. Ra7 {[%clk
0:00:13.5]} 33... e5 {[%clk 0:00:07.7]} 34. Rxa5 {[%clk 0:00:12.8]} 34... exd4
{[%clk 0:00:07.9]} 35. exd4 {[%clk 0:00:13.7]} 35... Rc4 {[%clk 0:00:08.5]} 36.
Ra4 {[%clk 0:00:13.1]} 36... Rc2 {[%clk 0:00:08]} 37. Kg2 {[%clk 0:00:13.5]}
37... Rd2 {[%clk 0:00:08.5]} 38. Nd7+ {[%clk 0:00:11.6]} 38... Ke7 {[%clk
0:00:08.3]} 39. Ne5 {[%clk 0:00:12.4]} 39... Ke6 {[%clk 0:00:08.9]} 40. Nf3
{[%clk 0:00:12.4]} 40... Rd1 {[%clk 0:00:08.7]} 41. Ra6+ {[%clk 0:00:13.1]}
41... Ke7 {[%clk 0:00:08.1]} 42. Rf6 {[%clk 0:00:13.8]} 42... Ke8 {[%clk
0:00:03.9]} 43. Rf4 {[%clk 0:00:13.1]} 43... Ke7 {[%clk 0:00:01.9]} 44. Ne5
{[%clk 0:00:13.3]} 44... Ke6 {[%clk 0:00:02.5]} 45. Rf6+ {[%clk 0:00:13.3]}
45... Ke7 {[%clk 0:00:01.4]} 46. Rxf7+ {[%clk 0:00:13.9]} 46... Ke8 {[%clk
0:00:02]} 47. Rf4 {[%clk 0:00:14.6]} 47... Ke7 {[%clk 0:00:02.5]} 48. Nxg6+
{[%clk 0:00:14.8]} 48... Ke6 {[%clk 0:00:02.6]} 49. Ne5 {[%clk 0:00:15.5]} 49...
Rd2 {[%clk 0:00:02.6]} 50. g6 {[%clk 0:00:16]} 50... Rd1 {[%clk 0:00:03.1]} 51.
g7 {[%clk 0:00:16.2]} 1-0

[Event "Early-Titled-Tuesday-Blitz-January-23-2024"]
[Site "Chess.com"]
[Date "2024.01.23"]
[Round "7"]
[White "wild3000"]
[Black "malakismayil"]
[Result "1-0"]
[WhiteElo "2457"]
[BlackElo "2558"]
[TimeControl "180+1"]
[EndTime "9:18:24 PST"]
[Termination "wild3000 won on time"]

1. d4 {[%clk 0:02:29.2]} 1... Nf6 {[%clk 0:02:58.7]} 2. c4 {[%clk 0:02:29.3]}
2... e6 {[%clk 0:02:58.6]} 3. Nc3 {[%clk 0:02:29.6]} 3... d5 {[%clk 0:02:59.2]}
4. Nf3 {[%clk 0:02:29.3]} 4... Be7 {[%clk 0:02:59.2]} 5. e3 {[%clk 0:02:29.1]}
5... O-O {[%clk 0:02:59.9]} 6. Be2 {[%clk 0:02:29.4]} 6... dxc4 {[%clk 0:03:00]}
7. Bxc4 {[%clk 0:02:29.3]} 7... c5 {[%clk 0:03:00.8]} 8. O-O {[%clk 0:02:29.4]}
8... Nc6 {[%clk 0:03:01.1]} 9. a3 {[%clk 0:02:29.5]} 9... cxd4 {[%clk
0:02:52.7]} 10. exd4 {[%clk 0:02:28.6]} 10... Nd5 {[%clk 0:02:53.3]} 11. Re1
{[%clk 0:02:23.6]} 11... Bf6 {[%clk 0:02:52.5]} 12. Ne4 {[%clk 0:02:22.1]} 12...
Be7 {[%clk 0:02:46.6]} 13. b4 {[%clk 0:02:11.1]} 13... a6 {[%clk 0:02:45.6]} 14.
Bb2 {[%clk 0:02:10.2]} 14... Nf6 {[%clk 0:02:45.6]} 15. Neg5 {[%clk 0:01:59.3]}
15... h6 {[%clk 0:02:45.4]} 16. Nh3 {[%clk 0:01:59.3]} 16... Bd7 {[%clk
0:02:41.4]} 17. Nf4 {[%clk 0:01:55.8]} 17... Rc8 {[%clk 0:02:40.8]} 18. Rc1
{[%clk 0:01:55.4]} 18... Bd6 {[%clk 0:02:40.9]} 19. Nd3 {[%clk 0:01:51.6]} 19...
Ne7 {[%clk 0:02:35.7]} 20. Ba2 {[%clk 0:01:51.1]} 20... Bc6 {[%clk 0:02:34.3]}
21. Bb1 {[%clk 0:01:41.8]} 21... Be4 {[%clk 0:02:29.5]} 22. Nfe5 {[%clk
0:01:38.7]} 22... Ned5 {[%clk 0:02:21.7]} 23. Nc5 {[%clk 0:01:31.6]} 23... Bxc5
{[%clk 0:01:59.1]} 24. dxc5 {[%clk 0:01:24]} 24... Bxb1 {[%clk 0:01:57.7]} 25.
Rxb1 {[%clk 0:01:24.1]} 25... Qc7 {[%clk 0:01:56.2]} 26. Rc1 {[%clk 0:01:15.8]}
26... Rfd8 {[%clk 0:01:55.9]} 27. Qf3 {[%clk 0:01:15.7]} 27... Ne7 {[%clk
0:01:49.5]} 28. h3 {[%clk 0:01:08.6]} 28... Rd5 {[%clk 0:01:48.5]} 29. Ng4
{[%clk 0:01:06.2]} 29... Nxg4 {[%clk 0:01:45.8]} 30. Qxg4 {[%clk 0:01:04]} 30...
Rg5 {[%clk 0:01:46.4]} 31. Qe2 {[%clk 0:00:59]} 31... Qc6 {[%clk 0:01:43.6]} 32.
Qe4 {[%clk 0:00:53.2]} 32... Nd5 {[%clk 0:01:32.3]} 33. Rcd1 {[%clk 0:00:44.8]}
33... Qc7 {[%clk 0:01:27.5]} 34. Be5 {[%clk 0:00:40.4]} 34... Qc6 {[%clk
0:01:27.5]} 35. h4 {[%clk 0:00:38.9]} 35... Rg6 {[%clk 0:01:27.1]} 36. g3 {[%clk
0:00:32.8]} 36... h5 {[%clk 0:00:59.6]} 37. Rd4 {[%clk 0:00:30]} 37... Rg4
{[%clk 0:00:56.2]} 38. Qd3 {[%clk 0:00:28.2]} 38... f6 {[%clk 0:00:51.5]} 39.
Rxg4 {[%clk 0:00:24.2]} 39... hxg4 {[%clk 0:00:52.4]} 40. Bd6 {[%clk 0:00:24.3]}
40... e5 {[%clk 0:00:46.6]} 41. Qg6 {[%clk 0:00:24.3]} 41... Qd7 {[%clk
0:00:42.5]} 42. h5 {[%clk 0:00:23.4]} 42... Rd8 {[%clk 0:00:21.2]} 43. h6 {[%clk
0:00:23.1]} 43... Nc7 {[%clk 0:00:05.7]} 44. hxg7 {[%clk 0:00:20.1]} 44... Ne6
{[%clk 0:00:03.5]} 45. Qxf6 {[%clk 0:00:19.6]} 45... Re8 {[%clk 0:00:03.1]} 46.
Rxe5 {[%clk 0:00:17.7]} 46... Nxg7 {[%clk 0:00:02.9]} 47. Rg5 {[%clk 0:00:14.6]}
47... Re1+ {[%clk 0:00:02.6]} 48. Kh2 {[%clk 0:00:14.8]} 48... Re6 {[%clk
0:00:00.8]} 49. Rxg7+ {[%clk 0:00:12.5]} 1-0

[Event "Early-Titled-Tuesday-Blitz-January-23-2024"]
[Site "Chess.com"]
[Date "2024.01.23"]
[Round "7"]
[White "NastyaHn"]
[Black "HajiyevKanan"]
[Result "0-1"]
[WhiteElo "2347"]
[BlackElo "2584"]
[TimeControl "180+1"]
[EndTime "9:18:24 PST"]
[Termination "HajiyevKanan won on time"]

1. Nc3 {[%clk 0:03:00.9]} 1... c6 {[%clk 0:02:50.3]} 2. d4 {[%clk 0:02:56.9]}
2... d5 {[%clk 0:02:51.2]} 3. Nf3 {[%clk 0:02:56.9]} 3... Nf6 {[%clk 0:02:50.5]}
4. Bg5 {[%clk 0:02:55.9]} 4... Ne4 {[%clk 0:02:50.5]} 5. Bf4 {[%clk 0:02:51.2]}
5... Qb6 {[%clk 0:02:48.8]} 6. Rb1 {[%clk 0:02:12.7]} 6... Bf5 {[%clk
0:02:45.5]} 7. e3 {[%clk 0:02:06.6]} 7... Qa5 {[%clk 0:02:41.9]} 8. Bd3 {[%clk
0:01:57.8]} 8... Nxc3 {[%clk 0:02:40.1]} 9. bxc3 {[%clk 0:01:50]} 9... Qxc3+
{[%clk 0:02:39.6]} 10. Kf1 {[%clk 0:01:42.4]} 10... Bxd3+ {[%clk 0:02:37]} 11.
cxd3 {[%clk 0:01:43.3]} 11... b5 {[%clk 0:02:26.9]} 12. g3 {[%clk 0:01:40.1]}
12... e6 {[%clk 0:02:18.7]} 13. Kg1 {[%clk 0:01:39.7]} 13... Ba3 {[%clk
0:02:06.4]} 14. Rb3 {[%clk 0:01:27.9]} 14... Qa5 {[%clk 0:01:47.2]} 15. Kg2
{[%clk 0:01:21.2]} 15... O-O {[%clk 0:01:47.5]} 16. h4 {[%clk 0:01:21.3]} 16...
Nd7 {[%clk 0:01:45.4]} 17. h5 {[%clk 0:01:21.2]} 17... h6 {[%clk 0:01:44.6]} 18.
Ne5 {[%clk 0:01:14.3]} 18... Nxe5 {[%clk 0:01:44.2]} 19. Bxe5 {[%clk 0:01:14.7]}
19... Rfc8 {[%clk 0:01:40.2]} 20. Qg4 {[%clk 0:01:10.2]} 20... Bf8 {[%clk
0:01:39.4]} 21. Rb2 {[%clk 0:01:07.8]} 21... Qc3 {[%clk 0:01:36.6]} 22. Qe2
{[%clk 0:01:07.2]} 22... c5 {[%clk 0:01:22.7]} 23. Rc2 {[%clk 0:00:48.5]} 23...
Qa5 {[%clk 0:01:19.6]} 24. dxc5 {[%clk 0:00:47.8]} 24... Rxc5 {[%clk 0:01:17.6]}
25. Rxc5 {[%clk 0:00:43.3]} 25... Bxc5 {[%clk 0:01:18.5]} 26. Rc1 {[%clk
0:00:42.9]} 26... Bf8 {[%clk 0:01:16.8]} 27. Rc2 {[%clk 0:00:30.4]} 27... Qd8
{[%clk 0:01:11.2]} 28. f4 {[%clk 0:00:25.8]} 28... Rc8 {[%clk 0:01:10.7]} 29.
Bd4 {[%clk 0:00:21.5]} 29... a5 {[%clk 0:01:09]} 30. Qd1 {[%clk 0:00:20.1]}
30... a4 {[%clk 0:00:57.6]} 31. Qc1 {[%clk 0:00:17.2]} 31... Rxc2+ {[%clk
0:00:54.2]} 32. Qxc2 {[%clk 0:00:17.8]} 32... Qd7 {[%clk 0:00:47.8]} 33. g4
{[%clk 0:00:12.4]} 33... b4 {[%clk 0:00:47.8]} 34. Kf3 {[%clk 0:00:12.2]} 34...
Qb7 {[%clk 0:00:47.8]} 35. Qxa4 {[%clk 0:00:10.2]} 35... f6 {[%clk 0:00:46.2]}
36. Qe8 {[%clk 0:00:09.5]} 36... Qe7 {[%clk 0:00:41.9]} 37. Qb8 {[%clk
0:00:07.1]} 37... Kf7 {[%clk 0:00:40.8]} 38. Bb6 {[%clk 0:00:03.9]} 38... Qd7
{[%clk 0:00:39.4]} 39. d4 {[%clk 0:00:04]} 39... Qb5 {[%clk 0:00:34.3]} 40. Qc7+
{[%clk 0:00:04]} 40... Kg8 {[%clk 0:00:34.8]} 41. Bc5 {[%clk 0:00:03.9]} 41...
Qf1+ {[%clk 0:00:33.8]} 42. Kg3 {[%clk 0:00:04.4]} 42... Qg1+ {[%clk 0:00:34.2]}
43. Kf3 {[%clk 0:00:04.8]} 43... Qf1+ {[%clk 0:00:33.1]} 44. Kg3 {[%clk
0:00:05.2]} 44... Bxc5 {[%clk 0:00:33.1]} 45. dxc5 {[%clk 0:00:04.7]} 45... Qe1+
{[%clk 0:00:33.7]} 46. Kf3 {[%clk 0:00:05]} 46... Qd1+ {[%clk 0:00:34.3]} 47.
Kg3 {[%clk 0:00:04.9]} 47... Qc1 {[%clk 0:00:29.6]} 48. Kf3 {[%clk 0:00:04.3]}
48... Qd1+ {[%clk 0:00:25.2]} 49. Kg3 {[%clk 0:00:03.3]} 49... Qd3 {[%clk
0:00:25.9]} 50. Kf3 {[%clk 0:00:03.2]} 50... d4 {[%clk 0:00:26.2]} 51. Qd8+
{[%clk 0:00:03.5]} 51... Kh7 {[%clk 0:00:26.5]} 52. Qxd4 {[%clk 0:00:03.6]}
52... Qf1+ {[%clk 0:00:26.8]} 53. Ke4 {[%clk 0:00:03.1]} 53... Qb5 {[%clk
0:00:27.7]} 54. Qd6 {[%clk 0:00:02.1]} 54... b3 {[%clk 0:00:26.3]} 55. axb3
{[%clk 0:00:01.7]} 55... Qxb3 {[%clk 0:00:27.2]} 56. c6 {[%clk 0:00:01.9]} 56...
Qc2+ {[%clk 0:00:27.9]} 57. Kf3 {[%clk 0:00:02.1]} 57... Qh2 {[%clk 0:00:27]}
58. c7 {[%clk 0:00:01.9]} 58... Qh1+ {[%clk 0:00:27.9]} 59. Ke2 {[%clk 0:00:02]}
59... Qg2+ {[%clk 0:00:28.3]} 60. Kd3 {[%clk 0:00:02]} 60... Qf3 {[%clk
0:00:28.1]} 61. c8=Q {[%clk 0:00:01.6]} 61... Qd1+ {[%clk 0:00:28.4]} 62. Kc3
{[%clk 0:00:01.2]} 62... Qxd6 {[%clk 0:00:29.3]} 0-1

[Event "Early-Titled-Tuesday-Blitz-January-23-2024"]
[Site "Chess.com"]
[Date "2024.01.23"]
[Round "7"]
[White "DTChess"]
[Black "chess_blitz00"]
[Result "1-0"]
[WhiteElo "2618"]
[BlackElo "2463"]
[TimeControl "180+1"]
[EndTime "9:18:26 PST"]
[Termination "DTChess won by resignation"]

1. e4 {[%clk 0:03:00.9]} 1... d6 {[%clk 0:03:00.9]} 2. d4 {[%clk 0:03:01]} 2...
g6 {[%clk 0:02:59.1]} 3. Nc3 {[%clk 0:03:01.4]} 3... c6 {[%clk 0:02:59.1]} 4.
Be3 {[%clk 0:03:01.4]} 4... Qb6 {[%clk 0:02:56.8]} 5. Qd2 {[%clk 0:03:00]} 5...
Nf6 {[%clk 0:02:55]} 6. f3 {[%clk 0:02:59.9]} 6... Qxb2 {[%clk 0:02:47.6]} 7.
Rb1 {[%clk 0:02:59.8]} 7... Qa3 {[%clk 0:02:47.5]} 8. h4 {[%clk 0:02:58]} 8...
h5 {[%clk 0:02:43.8]} 9. Nge2 {[%clk 0:02:52.3]} 9... Qa5 {[%clk 0:02:40.2]} 10.
Nc1 {[%clk 0:02:46.2]} 10... Qc7 {[%clk 0:02:37.8]} 11. Nd3 {[%clk 0:02:42.7]}
11... Nbd7 {[%clk 0:02:37.1]} 12. Be2 {[%clk 0:02:36.7]} 12... Bg7 {[%clk
0:02:35.5]} 13. Kf2 {[%clk 0:02:34.3]} 13... Nb6 {[%clk 0:02:34]} 14. Nc1 {[%clk
0:02:22.6]} 14... e5 {[%clk 0:02:24.9]} 15. Nb3 {[%clk 0:02:16.7]} 15... Be6
{[%clk 0:02:22.8]} 16. d5 {[%clk 0:02:15.2]} 16... cxd5 {[%clk 0:02:18.9]} 17.
exd5 {[%clk 0:02:05.5]} 17... Nbxd5 {[%clk 0:02:18.3]} 18. Nb5 {[%clk
0:02:02.7]} 18... Qd8 {[%clk 0:02:15.6]} 19. c4 {[%clk 0:01:45.2]} 19... Nxe3
{[%clk 0:02:15.5]} 20. Qxe3 {[%clk 0:01:41.5]} 20... a6 {[%clk 0:02:08.3]} 21.
Nc3 {[%clk 0:01:28.6]} 21... Bh6 {[%clk 0:02:07.9]} 22. Qd3 {[%clk 0:01:24.7]}
22... Bf5 {[%clk 0:02:04.9]} 23. Ne4 {[%clk 0:01:23.3]} 23... Bxe4 {[%clk
0:02:04.5]} 24. fxe4 {[%clk 0:01:22.4]} 24... Qd7 {[%clk 0:01:56.8]} 25. Rbd1
{[%clk 0:01:15.7]} 25... Rd8 {[%clk 0:01:51.9]} 26. g3 {[%clk 0:01:14.1]} 26...
O-O {[%clk 0:01:51.3]} 27. Kg2 {[%clk 0:01:12.6]} 27... Ng4 {[%clk 0:01:46.6]}
28. Bxg4 {[%clk 0:01:09.6]} 28... Qxg4 {[%clk 0:01:47.5]} 29. Qf3 {[%clk
0:01:07.4]} 29... Qe6 {[%clk 0:01:45.2]} 30. Rd5 {[%clk 0:01:02.7]} 30... f5
{[%clk 0:01:43.1]} 31. c5 {[%clk 0:00:54.3]} 31... fxe4 {[%clk 0:01:25.5]} 32.
Qxe4 {[%clk 0:00:54.1]} 32... Qf6 {[%clk 0:00:51.7]} 33. Rhd1 {[%clk 0:00:46.2]}
33... Kh7 {[%clk 0:00:41.3]} 34. Rxd6 {[%clk 0:00:41.2]} 34... Qf2+ {[%clk
0:00:33.9]} 35. Kh3 {[%clk 0:00:36.6]} 35... Rxd6 {[%clk 0:00:33.3]} 36. Rxd6
{[%clk 0:00:24.5]} 36... Qf1+ {[%clk 0:00:30.6]} 37. Qg2 {[%clk 0:00:24.6]}
37... Qf5+ {[%clk 0:00:30.2]} 38. Kh2 {[%clk 0:00:24.9]} 38... e4 {[%clk
0:00:16.9]} 39. Nd4 {[%clk 0:00:24]} 39... Qxc5 {[%clk 0:00:13.3]} 40. Rd7+
{[%clk 0:00:24.5]} 40... Bg7 {[%clk 0:00:12.4]} 41. Rxg7+ {[%clk 0:00:23.4]}
41... Kh8 {[%clk 0:00:08.8]} 42. Ne6 {[%clk 0:00:23.9]} 42... Rf2 {[%clk
0:00:04.2]} 43. Nxc5 {[%clk 0:00:23.8]} 43... Rxg2+ {[%clk 0:00:04.6]} 44. Kxg2
{[%clk 0:00:24.3]} 44... Kxg7 {[%clk 0:00:05.3]} 45. Nxe4 {[%clk 0:00:24.5]}
45... b6 {[%clk 0:00:03.6]} 46. Kf3 {[%clk 0:00:24.9]} 46... Kf7 {[%clk
0:00:03.9]} 47. Kf4 {[%clk 0:00:25.4]} 47... Ke6 {[%clk 0:00:04.4]} 48. Nc3
{[%clk 0:00:23]} 48... b5 {[%clk 0:00:02.8]} 49. a3 {[%clk 0:00:22.5]} 49... Kd6
{[%clk 0:00:02.9]} 50. Ke4 {[%clk 0:00:22.9]} 50... Kc5 {[%clk 0:00:03.4]} 51.
Kd3 {[%clk 0:00:23.1]} 51... a5 {[%clk 0:00:03.9]} 52. Ne2 {[%clk 0:00:22.3]}
52... b4 {[%clk 0:00:03.1]} 53. axb4+ {[%clk 0:00:22.3]} 53... Kxb4 {[%clk
0:00:04]} 54. Kc2 {[%clk 0:00:21.2]} 54... Kc4 {[%clk 0:00:03.1]} 55. Nf4 {[%clk
0:00:21.7]} 55... Kd4 {[%clk 0:00:02.5]} 56. Nxg6 {[%clk 0:00:22.1]} 56... Ke4
{[%clk 0:00:03.2]} 57. Nf4 {[%clk 0:00:22.3]} 57... Kf3 {[%clk 0:00:03.7]} 58.
Nxh5 {[%clk 0:00:21.9]} 58... Kg4 {[%clk 0:00:03.9]} 59. Kb3 {[%clk 0:00:22.4]}
59... a4+ {[%clk 0:00:04.6]} 60. Kxa4 {[%clk 0:00:22.7]} 60... Kxh5 {[%clk
0:00:05.3]} 61. Kb3 {[%clk 0:00:23.1]} 61... Kg4 {[%clk 0:00:06.2]} 62. Kc3
{[%clk 0:00:23.2]} 62... Kxg3 {[%clk 0:00:07.1]} 63. h5 {[%clk 0:00:23.4]} 63...
Kh4 {[%clk 0:00:08]} 64. h6 {[%clk 0:00:24.3]} 1-0